Cogmind - Beta 14 @@@ ROGUE MODE // 2024.12.18 @ 13:27:05 Player: 7604 Result: Destroyed by as-14200 with Assembled Rifle Performance ------------- Evolutions (0) 0 Regions Visited (2) 400 Robots Destroyed (19) 95 Value Destroyed (339) 339 Prototype IDs (0) 0 Alien Tech Used (0) 0 Bonus (42) 42 TOTAL SCORE: 876 Bonus ------- Follower Combat Kills 42 Cogmind --------- Core Integrity 0/250 Matter 300/300 Energy 96/100 System Corruption 3% Temperature Cool (2) Movement Treading (240) Ox1 Location -10/Mines Parts ------- > --- POWER (1) -------- (None) > --- PROPULSION (2) --- Light Treads Light Treads > --- UTILITY (2) ------ High-capacity Storage Unit > --- WEAPON (2) ------- EM Pulse Gun > --- INVENTORY (20) --- Ion Engine Ion Engine Light Ion Engine Light Treads Cooling System Cooling System Small Storage Unit Medium Storage Unit Large Storage Unit Visual Processing Unit Terrain Scanner Seismic Detector EM Pulse Gun Light Assault Rifle Light Assault Rifle EMP Blaster Peak State ------------ > --- POWER ------------ Improved Ion Engine > --- PROPULSION ------- Light Treads Light Treads > --- UTILITY ---------- Cooling System High-capacity Storage Unit > --- WEAPON ----------- EM Pulse Gun EM Pulse Gun > --- INVENTORY -------- Ion Engine Ion Engine Light Ion Engine Light Treads Cooling System Cooling System Small Storage Unit Medium Storage Unit Large Storage Unit Visual Processing Unit Terrain Scanner Seismic Detector EM Pulse Gun Light Assault Rifle Light Assault Rifle EMP Blaster [Rating: 11] Favorites ----------- Power Improved Ion Engine Engine Improved Ion Engine Propulsion Light Treads Treads Light Treads Utility Cooling System Device Cooling System Storage Large Storage Unit Weapon EM Pulse Gun Energy Gun EM Pulse Gun Build | -11 -10 -10 ------- Run | Yrd Mat Min Slots Evolved . | . . . Power . | . . . Propulsion . | . . . Utility . | . . . Weapon . | . . . Parts Attached 14 | 6 7 1 Power 2 | 1 1 . Engine 2 | 1 1 . Core . | . . . Reactor . | . . . Propulsion 3 | 2 1 . Treads 3 | 2 1 . Leg . | . . . Wheel . | . . . Hover . | . . . Flight . | . . . Utility 5 | 1 3 1 Device 1 | . 1 . Storage 4 | 1 2 1 Processor . | . . . Hackware . | . . . Protection . | . . . Artifact . | . . . Weapon 4 | 2 2 . Energy Gun 4 | 2 2 . Energy Cannon . | . . . Ballistic Gun . | . . . Ballistic Cannon . | . . . Launcher . | . . . Special Weapon . | . . . Impact Weapon . | . . . Slashing Weapon . | . . . Piercing Weapon . | . . . Special Melee Weapon . | . . . Unidentified Prototypes . | . . . Parts Lost 4 | . 1 3 Power 1 | . . 1 Propulsion . | . . . Utility 1 | . . 1 Weapon 2 | . 1 1 Highest Loss Streak 3 | . 1 3 To Critical Strikes . | . . . Average Slot Usage (%) 99 | . 98 99 Engine 13 | . 14 13 Treads 27 | . 27 28 Device 13 | . 13 14 Storage 14 | . 14 14 Energy Gun 27 | . 27 27 Peak Build Rating 11 | 6 10 11 Average Rating 9 | 4 9 10 On Entrance 5 | . 6 10 Naked Turns . | . . . Heaviest Build 53 | 14 33 53 Greatest Support 40 | 40 40 40 Greatest Overweight (x) 1 | . . 1 Average Overweight (x) . | . . . Largest Inventory Capacity 20 | 8 15 20 Average Capacity 14 | 7 12 19 Most Carried 16 | 2 13 16 Average Carried 11 | 1 10 14 Final Capacity 20 | 8 15 20 Final Carried 16 | 2 13 16 Class Distribution -------------------- 100% | Mutant Dominant Class ---------------- Mutant | -10/Materials Mutant | -10/Mines Resources | -11 -10 -10 ----------- Run | Yrd Mat Min Matter Collected 338 | 226 102 10 Remotely . | . . . Salvage Created 562 | . 562 . Parts 41 | . 41 . Haulers Intercepted . | . . . Recyclers Shooed 2 | . 2 . Parts Field Recycled . | . . . Retrieved Matter . | . . . Parts Self-Destructed . | . . . Prevented . | . . . Kills | -11 -10 -10 ------- Run | Yrd Mat Min Combat Hostiles Destroyed 14 | . 14 . Guns 12 | . 12 . AOE 1 | . 1 . Classes Destroyed 5 | . 5 . Builder 1 | . 1 . Recycler 1 | . 1 . Watcher 3 | . 3 . Swarmer 9 | . 9 . Grunt 5 | . 5 . Best Kill Streak 5 | . 5 . Combat Bots Only 3 | . 3 . Max Kills in Single Turn 1 | . 1 . Gunslinging . | . . . Exploded 1 | . 1 . Melee . | . . . Uniques/NPCs Destroyed . | . . . Combat | -11 -10 -10 -------- Run | Yrd Mat Min Hostile Shots Fired 75 | . 55 20 Missed 18 | . 13 5 Damage Taken 707 | . 448 259 Core 252 | . 156 96 Absorbed by Shields . | . . . Regen/Repaired (Parts) 112 | . 112 . Core Remaining (%) 100 | 100 . . Volleys Fired 34 | . 34 . Largest 2 | . 2 . Hottest 80 | . 80 . Shots Fired 68 | . 68 . Gun 68 | . 68 . Cannon . | . . . Launcher . | . . . Special . | . . . Kinetic . | . . . Thermal . | . . . Explosive . | . . . Electromagnetic 68 | . 68 . Robot Hit Streak 12 | . 12 . Robot Miss Streak 5 | . 5 . Penetration Max . | . . . Secondary Targets 1 | . 1 . Max Gunslinging Chain 1 | . 1 . Shots Hit Robots 41 | . 41 . Core Hits 21 | . 21 . Critical Kills . | . . . Critical Parts Destroyed . | . . . Critical Strikes 1 | . 1 . Corrupt 1 | . 1 . Melee Attacks . | . . . Impact . | . . . Slashing . | . . . Piercing . | . . . Sneak Attacks . | . . . Combat Hostiles . | . . . Follow-up Attacks . | . . . Damage Inflicted 749 | . 749 . Guns 586 | . 586 . Cannons . | . . . Explosions 161 | . 161 . Melee . | . . . Ramming 2 | . 2 . Kinetic . | . . . Thermal 161 | . 161 . Explosive . | . . . Electromagnetic 586 | . 586 . Impact . | . . . Slashing . | . . . Piercing . | . . . Highest Corruption 3 | . . 3 Average Corruption 3 | . . 3 Corruption Purged . | . . . Corruption Blocked . | . . . Overload Shots . | . . . Overflow Damage 6 | . 6 . Projectiles . | . . . Explosions 6 | . 6 . Melee . | . . . Knockbacks . | . . . Impact . | . . . Kinetic . | . . . Secondary . | . . . Self-Inflicted Damage 58 | . 58 . Shots 2 | . 2 . Rammed 1 | . 1 . Targets Rammed 1 | . 1 . Kicked . | . . . Crushed . | . . . Highest Temperature . | . . . Average Temperature . | . . . Received Heat Transfer 114 | . 114 . Siege Activations . | . . . Robots Corrupted 1 | . 1 . Combat Hostiles 1 | . 1 . Parts Fried 2 | . 2 . Impact Corruptions . | . . . Robots Melted . | . . . Combat Hostiles . | . . . Parts Melted . | . . . Heat Transferred 150 | . 150 . Parts Sabotaged . | . . . Parts Stolen . | . . . Parts Stripped . | . . . Power Chain Reactions 3 | . 3 . Alert | -11 -10 -10 ------- Run | Yrd Mat Min Peak Influence 314 | . 314 138 Initial 42 | . . 42 Average 115 | . 160 57 Maximum Alert Level 1 | . 1 . Low Security (%) 86 | 100 76 100 Level 1 13 | . 23 . Level 2 . | . . . Level 3 . | . . . Level 4 . | . . . Level 5 . | . . . High Security . | . . . Max Security . | . . . Squads Dispatched 3 | . 3 . Investigation 2 | . 2 . Extermination . | . . . Reinforcement 1 | . 1 . Assault . | . . . Garrison . | . . . Intercept . | . . . Searches Triggered . | . . . Construction Impeded . | . . . Haulers Reinforced . | . . . Active Scanning Responses . | . . . Cargo Convoy Interrupts . | . . . Stealth | -11 -10 -10 --------- Run | Yrd Mat Min Distress Signals 1 | . 1 . Communications Jammed . | . . . Distress Signals . | . . . Times Spotted 36 | . 22 14 Peak Tracking Total 9 | . 4 9 Tactical Retreats 3 | . 2 1 Traps | -11 -10 -10 ------- Run | Yrd Mat Min Traps Triggered 1 | . 1 . Indirectly . | . . . Trap Hack Attempts . | . . . Triggered . | . . . Disarmed . | . . . Reprogrammed . | . . . Reused . | . . . Traps Extracted . | . . . Installed . | . . . Triggered . | . . . Machines | -11 -10 -10 ---------- Run | Yrd Mat Min Machines Disabled 2 | . 2 . Max in Single Turn 1 | . 1 . Machines Repaired . | . . . Machines Dismantled . | . . . Machines Sabotaged . | . . . Overloaded Fab Kills . | . . . Hacking | -11 -10 -10 --------- Run | Yrd Mat Min Machines Accessed 6 | . 6 . Terminals 4 | . 4 . Fabricators . | . . . Repair Stations 1 | . 1 . Recycling Units 1 | . 1 . Scanalyzers . | . . . Garrison Access . | . . . Total Hacks 30 | . 30 . Successful 17 | . 17 . Failed 13 | . 13 . Catastrophic 3 | . 3 . Database Lockouts . | . . . Manual 12 | . 12 . Terminals 23 | . 23 . Fabricators . | . . . Repair Stations 6 | . 6 . Recycling Units 1 | . 1 . Scanalyzers . | . . . Garrison Access . | . . . Terminal Hacks 7 | . 7 . Part Schematic 1 | . 1 . Robot Analysis 3 | . 3 . Locate Traps 2 | . 2 . Hauler Manifests 1 | . 1 . Fabricator Hacks . | . . . Repair Station Hacks 6 | . 6 . Scan Component 3 | . 3 . Repair 3 | . 3 . Recycling Unit Hacks 1 | . 1 . Retrieve Components 1 | . 1 . Scanalyzer . | . . . Garrison Access Hacks . | . . . Unauthorized Hacks 3 | . 3 . Terminals 3 | . 3 . Botnet 3 | . 3 . Fabricators . | . . . Repair Stations . | . . . Recycling Units . | . . . Scanalyzers . | . . . Garrison Access . | . . . Data Cores Recovered . | . . . Used . | . . . Hacking Detections 5 | . 5 . Full Trace Events 1 | . 1 . Feedback Events . | . . . Feedback Blocked . | . . . Robot Schematics Acquired . | . . . Robots Built . | . . . Authchips . | . . . Time . | . . . Total Robot Build Rating . | . . . Part Schematics Acquired 1 | . 1 . Parts Built . | . . . Authchips . | . . . Time . | . . . Total Part Build Rating . | . . . Parts Repaired 3 | . 3 . Time 84 | . 84 . Parts Recycled . | . . . Recycled Matter . | . . . Retrieved Matter . | . . . Retrieved Components 2 | . 2 . Parts Scanalyzed . | . . . Part Schematics Acquired . | . . . Parts Damaged . | . . . Bothacking | -11 -10 -10 ------------ Run | Yrd Mat Min Used RIF Installer . | . . . Robots Hacked . | . . . Non-combat . | . . . Combat . | . . . Robot Hacks Applied . | . . . Relay Couplers Released . | . . . Fabnet Peak Effective % . | . . . Robots Rewired . | . . . Allies Hacked . | . . . Hacks Repelled . | . . . Allies | -11 -10 -10 -------- Run | Yrd Mat Min Total Allies 3 | . . 3 Largest Group 3 | . . 3 Highest-Rated Group 40 | . . 40 Highest-Rated Ally 16 | . . 16 Total Orders . | . . . Ally Attacks 23 | . . 23 Total Damage 192 | . . 192 Kills 7 | . . 7 Allies Corrupted . | . . . Allies Melted . | . . . Intel | -11 -10 -10 ------- Run | Yrd Mat Min Robot Analysis Total 3 | . 3 . Derelict Logs Recovered . | . . . Drone Launches . | . . . Drone Recoveries . | . . . Exploration | -11 -10 -10 ------------- Run | Yrd Mat Min Turns Passed 2122 | 71 1222 829 Spaces Moved 966 | 41 560 365 Core 4 | 4 . . Treads 962 | 37 560 365 Legs . | . . . Wheels . | . . . Hover . | . . . Flight . | . . . Fastest Speed 50 | 50 160 160 Average Speed 183 | 149 160 222 Slowest Speed 240 | 160 160 240 Overloaded Moves . | . . . Propulsion Burnouts . | . . . Robots Hopped . | . . . Cave-ins Triggered . | . . . Exploration Rate (%) 52 | 4 89 65 Regions Visited 2 Branch Regions 1 Pre-discovered Areas . | . . . Known Exits Taken . | . . . Unknown Exits Taken 2 | 1 1 . Scrap Searched 1 | . . 1 Spaces Dug . | . . . Terrain Destroyed 3 | . 3 . Melee . | . . . Projectile . | . . . AOE 3 | . 3 . Terrain Rammed . | . . . Walls Destroyed . | . . . Machines Disabled . | . . . Actions | -11 -10 -10 --------- Run | Yrd Mat Min Total 1248 | 48 816 384 Wait 217 | . 201 16 Move 964 | 40 559 365 Hop . | . . . Pick Up 16 | 2 12 2 Fast Attach 9 | 6 3 . Attach 1 | . 1 . Detach . | . . . Swap 4 | . 3 1 Drop 2 | . 2 . Fire 34 | . 34 . Melee . | . . . Ram . | . . . Kick . | . . . Crush 1 | . 1 . Escape Stasis . | . . . Rewire . | . . . Trap . | . . . Miscellaneous . | . . . Route ------- -11/Scrapyard -10/Materials (discovered 4 exits: [*Mat x2] / [*Min x2]) -10/Mines (discovered 2 exits: [*Mat x2]) History --------- Turn | Location | Event 3 | -11/Scrapyard | Discovered new exit (range 15) 72 | -11/Scrapyard | Entered Materials 302 | -10/Materials | Build established: Mutant 347 | -10/Materials | Discovered new exit (range 13) 511 | -10/Materials | Discovered new exit (range 16) 667 | -10/Materials | Discovered new exit (range 16) 903 | -10/Materials | Repaired EMP Blaster 964 | -10/Materials | Repaired Lgt. Treads 992 | -10/Materials | Repaired EM Pulse Gun 1121 | -10/Materials | Core integrity fell below 50% 1163 | -10/Materials | Discovered new exit (range 10) 1294 | -10/Materials | Entered Mines 1411 | -10/Mines | Discovered new exit (range 10) 1655 | -10/Mines | Assisted by bots powering up and referring to "LRC-V3" 1682 | -10/Mines | Discovered new exit (range 6) 2090 | -10/Mines | Assembled infested the area 2121 | -10/Mines | Core integrity fell below 20% 2123 | -10/Mines | Destroyed by as-14200 with Assembled Rifle Last Messages --------------- 02105_ as-41318 sneak attacks. 02105_ T-07 Excavator system corrupted by crushing effect. 02105_ T-07 Excavator destroyed. 02109_ K-01 Serf collects debris. 02110_ as-41318 sneak attacks. 02110_ K-01 Serf system corrupted by crushing effect. 02110_ K-01 Serf knocked back. 02110_ as-41318 suffers critical hit (Burn). 02110_ K-01 Serf destroyed. 02117_ Imp. Ion Engine destroyed. 02119_ EM Pulse Gun destroyed. 02121_ Cooling System destroyed. 02121_ System corrupted by crushing effect (+3). 02121_ C-30 ARC bursts open, deploying its payload. 02121_ D-53 Grenadier unfolds itself. 02122_ K-01 Serf collects debris. 02122_ K-01 Serf destroyed. Map ----- +----------------------------------------------------+ | ??????????????# #???????????????????????????? | | ??????????????# #???????????????????????????? | | ???????######## ##### #?????????????????????? | | ??????## #?????????????????????? | | ??????# #?????????????????????? | | ?????## ##########?????????????????????? | | ?????# #??????????????????????????????? | | ?????# ##??????????????????????????????? | | ?????# ##????????????????? ?????????????? | | ?????# ##?????????????????? ?????????????? | | #????# #??????????????????? ?????????????? | | ##???# #???????##?????????? ?????????????? | | ##??## #?????# ##????????? ?????????????? | | ##??## ##????? #????????# ?????????????? | | #???#!#????# #????????#$?????????????? | | #####%##???? #????????# #????????????? | | = #????? #????????# #????????????? | | ######=#?????# #????????# #???#????????? | | ##????# #????## #????????# #?? #????????? | | ###????##%###### ##???????# ### #????????? | | #??#####**% % ##??????# ?????????? | | ???# k d ##?????# ??????????? | | ??# #### d ####??# #???????????? | | ??# #???# ##?#% #???????????? | | #### #????# #?#= ####????????? | | ### #?????## @ ###% ##???????? | | # #?# ???????## aaa##[= ##??????? | | # #?#?????????# aa=%! #??????? | | # #???????????# ## a ### #?????? | | # ### ## #?## ####*%= ##??# #?????? | | # #??#####??### ##????# ##?????? | | # #### # #???????????## #??????###??????? | | # #??????????????????????# #???????????????? | | #?????????????????????## #???????????????? | | ###????????????????????## #???????????????? | | ??????????????????????## #???????????????? | | ??????????????????????# ##???????????????? | | ??????????????????????# #????????????????? | | ??????????????????????# #????????????????? | | ??????????????????????# ##????????????????? | | ?????????????????????## #?????????????????? | | ?????????????????????# #?????????????????? | | ?????????????????????# #?????????????????? | | ?????????????????????## ##?????????????????? | | ??????????????????????####??????????????????? | | ????????????????????????????????????????????? | | ????????????????????????????????????????????? | | ????????????????????????????????????????????? | | ????????????????????????????????????????????? | | ????????????????????????????????????????????? | +----------------------------------------------------+ Best States ------------- Heat Dissipation 47 Energy Generation 12 Energy Capacity 265 Matter Stores 300 Matter Capacity 300 Sight Range 16 Terrain Scan Density 10 Evasion (%) 40 Recoil Reduction 2 Item Schematics ----------------- ECM Suite | -10/Materials | Hacked Robot Schematics ------------------ None Fabricated ------------ Nothing Alien Tech Used ----------------- None Achievements -------------- None Challenges ------------ None Game ------ Seed GammaColdKatana Manual? 0 Play Time 00:16:10 Cumulative 165.1 hours Start 2024.12.17 @ 00:23:37 End 2024.12.18 @ 13:27:05 Sessions 3 Manual Loads 0 Difficulty Rogue Special Mode None Game No. 82 Rogue 19 Adventurer 63 Explorer 0 Win Type - Total 8 Types 7/0/0/1/0/0/0/0/0 Lore% 69 Gallery% 68 Achievement% 57 Wizard Run 0 Options --------- Layout 1 ASCII 0 Keyboard 1 Movement Numpad Keybinds 0 Fullscreen 1 Font 24/Terminus Map View 50x35 Zoom Use 0% Tactical HUD 1 Map Filters NONE Filters NONE Steam 1 RUN: 4bc19bd3-8fce-43f4-be1c-da9cfe5d8e3a